[Event "Titled Tuesday Blitz July 05 Late 2022"]
[White "Swiercz, Dariusz"]
[Black "Poltorak, Sebastian"]
[WhiteFideId "1126881"]
[BlackFideId "1199498"]
[WhiteElo "2627"]
[BlackElo "2104"]
[Result "1-0"]
[Round "10"]
[TimeControl "180+1"]
[Date "2022.07.05"]
[WhiteClock "0:00:18"]
[BlackClock "0:00:12"]

1. d4 {[%clk 0:02:59]}  Nf6 {[%clk 0:02:59]} 2. c4 {[%clk 0:03:00]}  g6 {[%clk 0:03:00]} 3. Nc3 {[%clk 0:03:00]}  d5 {[%clk 0:03:00]} 4. cxd5 {[%clk 0:03:00]}  Nxd5 {[%clk 0:03:01]} 5. e4 {[%clk 0:03:00]}  Nxc3 {[%clk 0:03:01]} 6. bxc3 {[%clk 0:03:00]}  Bg7 {[%clk 0:03:02]} 7. Be3 {[%clk 0:03:01]}  c5 {[%clk 0:03:02]} 8. Rc1 {[%clk 0:03:02]}  Qa5 {[%clk 0:02:56]} 9. Qd2 {[%clk 0:03:02]}  cxd4 {[%clk 0:02:55]} 10. cxd4 {[%clk 0:03:02]}  Qxd2+ {[%clk 0:02:56]} 11. Bxd2 {[%clk 0:03:03]}  O-O {[%clk 0:02:54]} 12. Nf3 {[%clk 0:03:04]}  e6 {[%clk 0:02:48]} 13. Bb5 {[%clk 0:03:03]}  Rd8 {[%clk 0:02:44]} 14. Bg5 {[%clk 0:02:51]}  f6 {[%clk 0:02:42]} 15. Be3 {[%clk 0:02:45]}  a6 {[%clk 0:02:16]} 16. Ba4 {[%clk 0:02:44]}  Nc6 {[%clk 0:02:14]} 17. Bxc6 {[%clk 0:02:39]}  bxc6 {[%clk 0:02:15]} 18. O-O {[%clk 0:02:18]}  Bd7 {[%clk 0:01:57]} 19. Rb1 {[%clk 0:02:08]}  Rab8 {[%clk 0:01:53]} 20. Bf4 {[%clk 0:02:08]}  Rb5 {[%clk 0:01:52]} 21. a4 {[%clk 0:02:07]}  Rxb1 {[%clk 0:01:48]} 22. Rxb1 {[%clk 0:02:08]}  c5 {[%clk 0:01:45]} 23. dxc5 {[%clk 0:02:04]}  Bxa4 {[%clk 0:01:37]} 24. Bd6 {[%clk 0:02:05]}  Bb5 {[%clk 0:01:33]} 25. Nd4 {[%clk 0:02:02]}  e5 {[%clk 0:00:52]} 26. Nxb5 {[%clk 0:01:59]}  axb5 {[%clk 0:00:52]} 27. f3 {[%clk 0:01:43]}  Bf8 {[%clk 0:00:49]} 28. Bxf8 {[%clk 0:01:44]}  Kxf8 {[%clk 0:00:49]} 29. Rxb5 {[%clk 0:01:44]}  Rd2 {[%clk 0:00:42]} 30. Rb6 {[%clk 0:01:40]}  Kg7 {[%clk 0:00:36]} 31. Rb7+ {[%clk 0:01:40]}  Kh6 {[%clk 0:00:36]} 32. Rf7 {[%clk 0:01:29]}  Rc2 {[%clk 0:00:33]} 33. Rxf6 {[%clk 0:01:28]}  Rxc5 {[%clk 0:00:33]} 34. Kf2 {[%clk 0:01:25]}  Kg7 {[%clk 0:00:31]} 35. Rd6 {[%clk 0:01:25]}  h5 {[%clk 0:00:29]} 36. Kg3 {[%clk 0:01:23]}  Rc7 {[%clk 0:00:22]} 37. Re6 {[%clk 0:01:23]}  Rc5 {[%clk 0:00:21]} 38. Kh4 {[%clk 0:01:22]}  Kh6 {[%clk 0:00:21]} 39. Rd6 {[%clk 0:01:16]}  Rc7 {[%clk 0:00:21]} 40. Kg3 {[%clk 0:01:13]}  Kg5 {[%clk 0:00:20]} 41. h4+ {[%clk 0:01:10]}  Kh6 {[%clk 0:00:20]} 42. Re6 {[%clk 0:01:08]}  Rc5 {[%clk 0:00:20]} 43. Re7 {[%clk 0:01:08]}  Rb5 {[%clk 0:00:20]} 44. Kh3 {[%clk 0:01:07]}  Rc5 {[%clk 0:00:16]} 45. Kh2 {[%clk 0:01:06]}  Rb5 {[%clk 0:00:16]} 46. Kg3 {[%clk 0:01:06]}  Rc5 {[%clk 0:00:16]} 47. Kf2 {[%clk 0:01:06]}  Rb5 {[%clk 0:00:14]} 48. g4 {[%clk 0:00:50]}  hxg4 {[%clk 0:00:13]} 49. fxg4 {[%clk 0:00:51]}  Rb2+ {[%clk 0:00:14]} 50. Kf3 {[%clk 0:00:49]}  Rb3+ {[%clk 0:00:14]} 51. Ke2 {[%clk 0:00:49]}  Rb2+ {[%clk 0:00:14]} 52. Kd3 {[%clk 0:00:49]}  Rg2 {[%clk 0:00:10]} 53. g5+ {[%clk 0:00:42]}  Kh5 {[%clk 0:00:11]} 54. Rxe5 {[%clk 0:00:17]}  Kxh4 {[%clk 0:00:11]} 55. Kd4 {[%clk 0:00:18]}  Kg4 {[%clk 0:00:07]} 56. Kd5 {[%clk 0:00:15]}  Kf4 {[%clk 0:00:07]} 57. Ke6 {[%clk 0:00:16]}  Rxg5 {[%clk 0:00:04]} 58. Rxg5 {[%clk 0:00:15]}  Kxg5 {[%clk 0:00:05]} 59. e5 {[%clk 0:00:16]}  Kf4 {[%clk 0:00:06]} 60. Kf6 {[%clk 0:00:16]}  g5 {[%clk 0:00:07]} 61. e6 {[%clk 0:00:16]}  g4 {[%clk 0:00:08]} 62. e7 {[%clk 0:00:17]}  g3 {[%clk 0:00:09]} 63. e8=Q {[%clk 0:00:18]}  g2 {[%clk 0:00:10]} 64. Qe1 {[%clk 0:00:18]}  Kf3 {[%clk 0:00:10]} 65. Qg1 {[%clk 0:00:18]}  Kg3 {[%clk 0:00:11]} 66. Kf5 {[%clk 0:00:18]}  Kf3 {[%clk 0:00:12]} 1-0


[Site "https://www.chess.com"]

[Event "Titled Tuesday Blitz July 05 Late 2022"]
[White "Tanenbaum, Zachary"]
[Black "Hansen, Eric"]
[WhiteFideId "2060850"]
[BlackFideId "2606771"]
[WhiteElo "2175"]
[BlackElo "2568"]
[Result "0-1"]
[Round "10"]
[TimeControl "180+1"]
[Date "2022.07.05"]
[WhiteClock "0:00:02"]
[BlackClock "0:00:12"]

1. e4 {[%clk 0:02:59]}  c5 {[%clk 0:03:00]} 2. Nf3 {[%clk 0:03:00]}  e6 {[%clk 0:03:01]} 3. d4 {[%clk 0:03:01]}  cxd4 {[%clk 0:03:01]} 4. Nxd4 {[%clk 0:03:01]}  Nc6 {[%clk 0:03:02]} 5. Nc3 {[%clk 0:03:02]}  a6 {[%clk 0:03:03]} 6. g3 {[%clk 0:03:02]}  d6 {[%clk 0:03:03]} 7. Bg2 {[%clk 0:03:02]}  Bd7 {[%clk 0:03:03]} 8. O-O {[%clk 0:03:02]}  Be7 {[%clk 0:03:04]} 9. Nxc6 {[%clk 0:03:01]}  Bxc6 {[%clk 0:03:03]} 10. Qg4 {[%clk 0:03:01]}  h5 {[%clk 0:03:03]} 11. Qe2 {[%clk 0:03:02]}  h4 {[%clk 0:03:03]} 12. Re1 {[%clk 0:03:02]}  Rc8 {[%clk 0:03:01]} 13. Bf4 {[%clk 0:02:58]}  Qa5 {[%clk 0:02:59]} 14. Rad1 {[%clk 0:02:56]}  hxg3 {[%clk 0:02:58]} 15. hxg3 {[%clk 0:02:56]}  Qh5 {[%clk 0:02:55]} 16. Qxh5 {[%clk 0:02:54]}  Rxh5 {[%clk 0:02:55]} 17. Bxd6 {[%clk 0:02:45]}  Bxd6 {[%clk 0:02:56]} 18. Rxd6 {[%clk 0:02:46]}  Ke7 {[%clk 0:02:56]} 19. Rd2 {[%clk 0:02:26]}  Rc5 {[%clk 0:02:41]} 20. e5 {[%clk 0:02:20]}  Nh6 {[%clk 0:02:38]} 21. Bxc6 {[%clk 0:02:19]}  R5xc6 {[%clk 0:02:38]} 22. Red1 {[%clk 0:02:18]}  R6c7 {[%clk 0:02:37]} 23. Ne4 {[%clk 0:02:14]}  Ng4 {[%clk 0:02:37]} 24. Nd6 {[%clk 0:02:12]}  Rh8 {[%clk 0:02:36]} 25. f4 {[%clk 0:01:59]}  g5 {[%clk 0:02:12]} 26. c3 {[%clk 0:01:43]}  gxf4 {[%clk 0:02:06]} 27. gxf4 {[%clk 0:01:44]}  Ne3 {[%clk 0:02:01]} 28. Re1 {[%clk 0:01:41]}  Rg8+ {[%clk 0:02:00]} 29. Kf2 {[%clk 0:01:38]}  Nd5 {[%clk 0:01:57]} 30. Kf3 {[%clk 0:01:38]}  Rh8 {[%clk 0:01:56]} 31. Rg1 {[%clk 0:01:30]}  b5 {[%clk 0:01:55]} 32. Rdg2 {[%clk 0:01:26]}  Rh3+ {[%clk 0:01:47]} 33. Rg3 {[%clk 0:01:26]}  Rxg3+ {[%clk 0:01:48]} 34. Rxg3 {[%clk 0:01:26]}  Kf8 {[%clk 0:01:45]} 35. Rh3 {[%clk 0:01:18]}  Kg8 {[%clk 0:01:39]} 36. Ke4 {[%clk 0:00:47]}  Rc6 {[%clk 0:01:30]} 37. f5 {[%clk 0:00:46]}  Nf6+ {[%clk 0:01:20]} 38. Kf4 {[%clk 0:00:28]}  Nd5+ {[%clk 0:01:17]} 39. Kg5 {[%clk 0:00:22]}  f6+ {[%clk 0:01:14]} 40. Kg6 {[%clk 0:00:17]}  fxe5 {[%clk 0:01:07]} 41. fxe6 {[%clk 0:00:07]}  Rxd6 {[%clk 0:01:07]} 42. Kf5 {[%clk 0:00:06]}  Nc7 {[%clk 0:00:41]} 43. e7 {[%clk 0:00:05]}  Re6 {[%clk 0:00:39]} 44. Re3 {[%clk 0:00:06]}  Kf7 {[%clk 0:00:35]} 45. Rxe5 {[%clk 0:00:05]}  Kxe7 {[%clk 0:00:22]} 46. Rxe6+ {[%clk 0:00:02]}  Nxe6 {[%clk 0:00:23]} 47. Ke5 {[%clk 0:00:03]}  Kd7 {[%clk 0:00:23]} 48. Kd5 {[%clk 0:00:03]}  Nf4+ {[%clk 0:00:22]} 49. Kc5 {[%clk 0:00:03]}  Kc7 {[%clk 0:00:20]} 50. b3 {[%clk 0:00:02]}  Nd3+ {[%clk 0:00:18]} 51. Kd4 {[%clk 0:00:03]}  Nc1 {[%clk 0:00:18]} 52. c4 {[%clk 0:00:02]}  b4 {[%clk 0:00:12]} 0-1


[Site "https://www.chess.com"]

[Event "Titled Tuesday Blitz July 05 Late 2022"]
[White "Timofeev, Artyom"]
[Black "Leiva, Gianmarco"]
[WhiteFideId "4140419"]
[BlackFideId "3804399"]
[WhiteElo "2578"]
[BlackElo "2323"]
[Result "1-0"]
[Round "10"]
[TimeControl "180+1"]
[Date "2022.07.05"]
[WhiteClock "0:01:51"]
[BlackClock "0:00:16"]

1. e4 {[%clk 0:03:00]}  c5 {[%clk 0:02:56]} 2. Nc3 {[%clk 0:03:00]}  Nc6 {[%clk 0:02:55]} 3. Bb5 {[%clk 0:02:59]}  Nd4 {[%clk 0:02:50]} 4. Nf3 {[%clk 0:02:59]}  Nxb5 {[%clk 0:02:42]} 5. Nxb5 {[%clk 0:02:58]}  d6 {[%clk 0:02:33]} 6. d4 {[%clk 0:02:56]}  cxd4 {[%clk 0:02:32]} 7. Qxd4 {[%clk 0:02:55]}  a6 {[%clk 0:02:29]} 8. Nc3 {[%clk 0:02:55]}  e5 {[%clk 0:02:25]} 9. Qd3 {[%clk 0:02:55]}  h6 {[%clk 0:02:24]} 10. Nd2 {[%clk 0:02:47]}  Nf6 {[%clk 0:02:17]} 11. Nc4 {[%clk 0:02:47]}  Be6 {[%clk 0:02:16]} 12. Be3 {[%clk 0:02:38]}  Rc8 {[%clk 0:02:04]} 13. Nb6 {[%clk 0:02:38]}  Rc6 {[%clk 0:01:53]} 14. Nbd5 {[%clk 0:02:36]}  Bxd5 {[%clk 0:01:51]} 15. Nxd5 {[%clk 0:02:33]}  Nxd5 {[%clk 0:01:52]} 16. Qxd5 {[%clk 0:02:32]}  Qc8 {[%clk 0:01:24]} 17. c3 {[%clk 0:02:29]}  Qe6 {[%clk 0:01:24]} 18. O-O-O {[%clk 0:02:25]}  Qxd5 {[%clk 0:01:23]} 19. Rxd5 {[%clk 0:02:25]}  Be7 {[%clk 0:01:12]} 20. Rhd1 {[%clk 0:02:24]}  f6 {[%clk 0:01:12]} 21. a4 {[%clk 0:02:18]}  b6 {[%clk 0:01:05]} 22. Kc2 {[%clk 0:02:11]}  Kf7 {[%clk 0:01:05]} 23. b3 {[%clk 0:02:11]}  Ke6 {[%clk 0:01:01]} 24. c4 {[%clk 0:02:11]}  h5 {[%clk 0:00:54]} 25. Kd3 {[%clk 0:02:10]}  Bd8 {[%clk 0:00:30]} 26. b4 {[%clk 0:02:03]}  Rc8 {[%clk 0:00:26]} 27. Kc3 {[%clk 0:01:58]}  Bc7 {[%clk 0:00:26]} 28. Bxb6 {[%clk 0:01:57]}  Rhd8 {[%clk 0:00:24]} 29. Bxc7 {[%clk 0:01:56]}  Rxc7 {[%clk 0:00:24]} 30. c5 {[%clk 0:01:55]}  Rcd7 {[%clk 0:00:20]} 31. Kc4 {[%clk 0:01:52]}  h4 {[%clk 0:00:15]} 32. h3 {[%clk 0:01:51]}  f5 {[%clk 0:00:15]} 33. exf5+ {[%clk 0:01:51]}  Kxf5 {[%clk 0:00:16]} 34. Rxd6 {[%clk 0:01:51]}  Rxd6 {[%clk 0:00:16]} 35. Rxd6 {[%clk 0:01:51]} 1-0


[Site "https://www.chess.com"]

[Event "Titled Tuesday Blitz July 05 Late 2022"]
[White "Tokhirjonova, Gulrukhbegim"]
[Black "Tikhonov, Viacheslav"]
[WhiteFideId "14203626"]
[BlackFideId "44196407"]
[WhiteElo "2227"]
[BlackElo "1839"]
[Result "1-0"]
[Round "10"]
[TimeControl "180+1"]
[Date "2022.07.06"]
[WhiteClock "0:00:59"]
[BlackClock "0:00:09"]

1. e4 {[%clk 0:03:00]}  e6 {[%clk 0:02:56]} 2. d4 {[%clk 0:02:58]}  d5 {[%clk 0:02:56]} 3. e5 {[%clk 0:02:58]}  c5 {[%clk 0:02:56]} 4. c3 {[%clk 0:02:57]}  Qb6 {[%clk 0:02:56]} 5. Nf3 {[%clk 0:02:56]}  Nc6 {[%clk 0:02:57]} 6. a3 {[%clk 0:02:47]}  Nh6 {[%clk 0:02:56]} 7. b4 {[%clk 0:02:44]}  cxd4 {[%clk 0:02:56]} 8. cxd4 {[%clk 0:02:44]}  Nf5 {[%clk 0:02:56]} 9. Bb2 {[%clk 0:02:44]}  Bd7 {[%clk 0:02:48]} 10. Be2 {[%clk 0:02:42]}  Be7 {[%clk 0:02:48]} 11. O-O {[%clk 0:02:42]}  O-O {[%clk 0:02:42]} 12. Bd3 {[%clk 0:02:42]}  Nh6 {[%clk 0:02:28]} 13. Nbd2 {[%clk 0:02:35]}  Rac8 {[%clk 0:02:28]} 14. Nb3 {[%clk 0:02:34]}  f5 {[%clk 0:02:25]} 15. exf6 {[%clk 0:02:31]}  Bxf6 {[%clk 0:02:24]} 16. Nc5 {[%clk 0:02:31]}  Qc7 {[%clk 0:02:14]} 17. Rc1 {[%clk 0:02:29]}  b6 {[%clk 0:02:10]} 18. Nxd7 {[%clk 0:02:09]}  Qxd7 {[%clk 0:02:11]} 19. Ba6 {[%clk 0:02:08]}  Rc7 {[%clk 0:02:08]} 20. Bb5 {[%clk 0:02:08]}  Qd6 {[%clk 0:02:02]} 21. Re1 {[%clk 0:02:08]}  Nf5 {[%clk 0:01:49]} 22. Qd3 {[%clk 0:01:44]}  Rfc8 {[%clk 0:01:22]} 23. Ba6 {[%clk 0:01:40]}  Re8 {[%clk 0:01:23]} 24. h3 {[%clk 0:01:29]}  Nb8 {[%clk 0:01:19]} 25. Bb5 {[%clk 0:01:28]}  Rec8 {[%clk 0:01:18]} 26. Rxc7 {[%clk 0:01:28]}  Rxc7 {[%clk 0:01:19]} 27. Ne5 {[%clk 0:01:23]}  Qe7 {[%clk 0:00:53]} 28. Ng4 {[%clk 0:01:18]}  Nd6 {[%clk 0:00:50]} 29. Ba4 {[%clk 0:01:12]}  Nc4 {[%clk 0:00:40]} 30. Bc1 {[%clk 0:01:12]}  h5 {[%clk 0:00:30]} 31. Nxf6+ {[%clk 0:01:06]}  Qxf6 {[%clk 0:00:31]} 32. Bc2 {[%clk 0:01:07]}  g5 {[%clk 0:00:14]} 33. Qg3 {[%clk 0:01:03]}  Rg7 {[%clk 0:00:13]} 34. Qxb8+ {[%clk 0:01:01]}  Qf8 {[%clk 0:00:13]} 35. Qxf8+ {[%clk 0:01:00]}  Kxf8 {[%clk 0:00:14]} 36. Rxe6 {[%clk 0:01:01]}  Rc7 {[%clk 0:00:13]} 37. Bxg5 {[%clk 0:00:59]}  Nxa3 {[%clk 0:00:12]} 38. Bg6 {[%clk 0:00:59]}  Nb5 {[%clk 0:00:09]} 39. Bh6+ {[%clk 0:00:58]}  Kg8 {[%clk 0:00:09]} 40. Re8# {[%clk 0:00:59]} 1-0


[Site "https://www.chess.com"]

[Event "Titled Tuesday Blitz July 05 Late 2022"]
[White "Vakhlamov, Igor L."]
[Black "Wachinger, Nikolas"]
[WhiteFideId "24126748"]
[BlackFideId "12962791"]
[WhiteElo "2401"]
[BlackElo "2253"]
[Result "0-1"]
[Round "10"]
[TimeControl "180+1"]
[Date "2022.07.05"]
[WhiteClock "0:00:27"]
[BlackClock "0:00:39"]

1. e4 {[%clk 0:03:00]}  c5 {[%clk 0:02:59]} 2. Nf3 {[%clk 0:03:00]}  Nc6 {[%clk 0:02:59]} 3. Nc3 {[%clk 0:03:01]}  g6 {[%clk 0:02:58]} 4. Bb5 {[%clk 0:03:01]}  Bg7 {[%clk 0:02:57]} 5. O-O {[%clk 0:02:57]}  e5 {[%clk 0:02:56]} 6. Nd5 {[%clk 0:02:49]}  Nge7 {[%clk 0:02:54]} 7. c3 {[%clk 0:02:44]}  O-O {[%clk 0:02:40]} 8. Re1 {[%clk 0:02:25]}  d6 {[%clk 0:02:39]} 9. a4 {[%clk 0:02:16]}  Nxd5 {[%clk 0:02:31]} 10. exd5 {[%clk 0:02:17]}  Ne7 {[%clk 0:02:31]} 11. d4 {[%clk 0:02:17]}  cxd4 {[%clk 0:02:20]} 12. cxd4 {[%clk 0:02:18]}  Nxd5 {[%clk 0:02:20]} 13. dxe5 {[%clk 0:02:16]}  dxe5 {[%clk 0:02:20]} 14. Nxe5 {[%clk 0:02:14]}  Be6 {[%clk 0:02:20]} 15. Nd7 {[%clk 0:01:50]}  Bxd7 {[%clk 0:02:01]} 16. Qxd5 {[%clk 0:01:50]}  Bxb5 {[%clk 0:01:45]} 17. Qxb5 {[%clk 0:01:51]}  Qc7 {[%clk 0:01:30]} 18. Be3 {[%clk 0:01:49]}  a6 {[%clk 0:01:25]} 19. Qb3 {[%clk 0:01:48]}  Rfc8 {[%clk 0:01:19]} 20. Rac1 {[%clk 0:01:44]}  Qd7 {[%clk 0:01:19]} 21. Rcd1 {[%clk 0:01:39]}  Qc6 {[%clk 0:01:13]} 22. h3 {[%clk 0:01:38]}  b5 {[%clk 0:01:12]} 23. axb5 {[%clk 0:01:39]}  Qxb5 {[%clk 0:01:02]} 24. Qxb5 {[%clk 0:01:28]}  axb5 {[%clk 0:01:03]} 25. Bd4 {[%clk 0:01:26]}  Rc2 {[%clk 0:01:00]} 26. Bxg7 {[%clk 0:01:12]}  Kxg7 {[%clk 0:01:01]} 27. Rd7 {[%clk 0:01:11]}  Rxb2 {[%clk 0:00:57]} 28. Ree7 {[%clk 0:01:11]}  Ra1+ {[%clk 0:00:57]} 29. Kh2 {[%clk 0:01:05]}  Rxf2 {[%clk 0:00:57]} 30. Rb7 {[%clk 0:01:01]}  Raa2 {[%clk 0:00:57]} 31. Rxb5 {[%clk 0:01:02]}  Rxg2+ {[%clk 0:00:57]} 32. Kh1 {[%clk 0:01:02]}  Rh2+ {[%clk 0:00:57]} 33. Kg1 {[%clk 0:01:02]}  Rxh3 {[%clk 0:00:54]} 34. Rbb7 {[%clk 0:01:01]}  Rf3 {[%clk 0:00:53]} 35. Rbc7 {[%clk 0:00:59]}  h5 {[%clk 0:00:53]} 36. Rc4 {[%clk 0:00:59]}  Rf5 {[%clk 0:00:48]} 37. Re3 {[%clk 0:00:57]}  g5 {[%clk 0:00:47]} 38. Rb4 {[%clk 0:00:55]}  Kg6 {[%clk 0:00:46]} 39. Rb8 {[%clk 0:00:53]}  h4 {[%clk 0:00:45]} 40. Re4 {[%clk 0:00:48]}  Rff2 {[%clk 0:00:39]} 41. Rg8+ {[%clk 0:00:48]}  Kf5 {[%clk 0:00:40]} 42. Rb4 {[%clk 0:00:39]}  f6 {[%clk 0:00:39]} 43. Rb5+ {[%clk 0:00:37]}  Kg4 {[%clk 0:00:39]} 44. Rb4+ {[%clk 0:00:31]}  Rf4 {[%clk 0:00:39]} 45. Rb3 {[%clk 0:00:28]}  h3 {[%clk 0:00:39]} 46. Rh8 {[%clk 0:00:27]}  Rg2+ {[%clk 0:00:38]} 47. Kh1 {[%clk 0:00:27]}  Rf1# {[%clk 0:00:39]} 0-1


[Site "https://www.chess.com"]

[Event "Titled Tuesday Blitz July 05 Late 2022"]
[White "Vlassov, Nikolai"]
[Black "Mei, Austin"]
[WhiteFideId "4103360"]
[BlackFideId "30948479"]
[WhiteElo "2324"]
[BlackElo "1971"]
[Result "1-0"]
[Round "10"]
[TimeControl "180+1"]
[Date "2022.07.06"]
[WhiteClock "0:00:47"]
[BlackClock "0:00:31"]

1. e4 {[%clk 0:03:00]}  e5 {[%clk 0:02:59]} 2. Bc4 {[%clk 0:03:00]}  Nf6 {[%clk 0:02:57]} 3. d3 {[%clk 0:03:00]}  c6 {[%clk 0:02:55]} 4. Nf3 {[%clk 0:03:00]}  d5 {[%clk 0:02:54]} 5. Bb3 {[%clk 0:03:00]}  Bd6 {[%clk 0:02:54]} 6. Nc3 {[%clk 0:03:00]}  d4 {[%clk 0:02:51]} 7. Ne2 {[%clk 0:03:00]}  O-O {[%clk 0:02:51]} 8. O-O {[%clk 0:02:59]}  b5 {[%clk 0:02:50]} 9. c3 {[%clk 0:02:59]}  dxc3 {[%clk 0:02:49]} 10. bxc3 {[%clk 0:02:59]}  a5 {[%clk 0:02:49]} 11. a4 {[%clk 0:02:58]}  b4 {[%clk 0:02:50]} 12. d4 {[%clk 0:02:53]}  Nxe4 {[%clk 0:02:45]} 13. dxe5 {[%clk 0:02:51]}  Bc5 {[%clk 0:02:41]} 14. cxb4 {[%clk 0:02:42]}  axb4 {[%clk 0:02:40]} 15. Ned4 {[%clk 0:02:36]}  Bg4 {[%clk 0:02:37]} 16. Be3 {[%clk 0:02:33]}  Nc3 {[%clk 0:02:34]} 17. Qd3 {[%clk 0:02:12]}  Bxf3 {[%clk 0:02:12]} 18. gxf3 {[%clk 0:02:12]}  Bxd4 {[%clk 0:02:00]} 19. e6 {[%clk 0:02:07]}  c5 {[%clk 0:01:56]} 20. exf7+ {[%clk 0:02:04]}  Kh8 {[%clk 0:01:57]} 21. Kh1 {[%clk 0:02:00]}  Nc6 {[%clk 0:01:56]} 22. Rg1 {[%clk 0:01:45]}  Ne5 {[%clk 0:01:53]} 23. Qf5 {[%clk 0:01:43]}  Qf6 {[%clk 0:01:48]} 24. Qxf6 {[%clk 0:01:38]}  gxf6 {[%clk 0:01:47]} 25. Bh6 {[%clk 0:01:38]}  Ng6 {[%clk 0:01:39]} 26. f4 {[%clk 0:01:13]}  Ne2 {[%clk 0:01:39]} 27. f5 {[%clk 0:01:09]}  Nxg1 {[%clk 0:01:09]} 28. Rxg1 {[%clk 0:01:08]}  Bxf2 {[%clk 0:00:49]} 29. fxg6 {[%clk 0:01:03]}  hxg6 {[%clk 0:00:49]} 30. Rxg6 {[%clk 0:01:02]}  Kh7 {[%clk 0:00:46]} 31. Rxf6 {[%clk 0:01:01]}  Bd4 {[%clk 0:00:41]} 32. Rc6 {[%clk 0:00:54]}  Ra7 {[%clk 0:00:34]} 33. Bxf8 {[%clk 0:00:52]}  c4 {[%clk 0:00:32]} 34. Bxc4 {[%clk 0:00:48]}  b3 {[%clk 0:00:31]} 35. Rh6# {[%clk 0:00:47]} 1-0


[Site "https://www.chess.com"]

[Event "Titled Tuesday Blitz July 05 Late 2022"]
[White "Voege, Tobias"]
[Black "Dardha, Arben"]
[WhiteFideId "1270513"]
[BlackFideId "4700481"]
[WhiteElo "2379"]
[BlackElo "2196"]
[Result "1-0"]
[Round "10"]
[TimeControl "180+1"]
[Date "2022.07.06"]
[WhiteClock "0:00:13"]
[BlackClock "0:00:07"]

1. e4 {[%clk 0:03:00]}  c5 {[%clk 0:02:56]} 2. Nf3 {[%clk 0:03:00]}  Nc6 {[%clk 0:02:56]} 3. d4 {[%clk 0:03:01]}  cxd4 {[%clk 0:02:56]} 4. Nxd4 {[%clk 0:03:02]}  e5 {[%clk 0:02:55]} 5. Nb5 {[%clk 0:03:00]}  Nf6 {[%clk 0:02:56]} 6. N1c3 {[%clk 0:02:58]}  d6 {[%clk 0:02:56]} 7. Na3 {[%clk 0:02:56]}  Be6 {[%clk 0:02:52]} 8. Bg5 {[%clk 0:02:54]}  Be7 {[%clk 0:02:52]} 9. Nc4 {[%clk 0:02:44]}  O-O {[%clk 0:02:47]} 10. Bxf6 {[%clk 0:02:38]}  gxf6 {[%clk 0:02:41]} 11. Ne3 {[%clk 0:02:36]}  Nd4 {[%clk 0:02:39]} 12. Bd3 {[%clk 0:02:28]}  Kh8 {[%clk 0:02:36]} 13. O-O {[%clk 0:01:54]}  Rg8 {[%clk 0:02:28]} 14. Kh1 {[%clk 0:01:47]}  Qd7 {[%clk 0:01:59]} 15. f4 {[%clk 0:01:39]}  f5 {[%clk 0:01:54]} 16. fxe5 {[%clk 0:01:26]}  fxe4 {[%clk 0:01:50]} 17. Bxe4 {[%clk 0:01:01]}  dxe5 {[%clk 0:01:48]} 18. Qh5 {[%clk 0:01:02]}  f5 {[%clk 0:01:39]} 19. Nxf5 {[%clk 0:00:59]}  Nxf5 {[%clk 0:01:35]} 20. Rxf5 {[%clk 0:00:45]}  Bd6 {[%clk 0:00:28]} 21. Rf6 {[%clk 0:00:32]}  Bg4 {[%clk 0:00:22]} 22. Qh4 {[%clk 0:00:21]}  Bb4 {[%clk 0:00:14]} 23. Bxh7 {[%clk 0:00:15]}  Qxh7 {[%clk 0:00:12]} 24. Rh6 {[%clk 0:00:15]}  Rg7 {[%clk 0:00:13]} 25. Rxh7+ {[%clk 0:00:14]}  Rxh7 {[%clk 0:00:13]} 26. Qxg4 {[%clk 0:00:14]}  Bxc3 {[%clk 0:00:13]} 27. bxc3 {[%clk 0:00:14]}  Rg8 {[%clk 0:00:14]} 28. Qe4 {[%clk 0:00:14]}  Rhg7 {[%clk 0:00:15]} 29. Qxe5 {[%clk 0:00:14]}  b5 {[%clk 0:00:15]} 30. Rf1 {[%clk 0:00:13]}  Rd8 {[%clk 0:00:13]} 31. h3 {[%clk 0:00:13]}  Kh7 {[%clk 0:00:13]} 32. Rf4 {[%clk 0:00:13]}  Rd2 {[%clk 0:00:12]} 33. Rh4+ {[%clk 0:00:13]}  Kg6 {[%clk 0:00:10]} 34. Rg4+ {[%clk 0:00:13]}  Kf7 {[%clk 0:00:07]} 35. Rxg7+ {[%clk 0:00:13]} 1-0


[Site "https://www.chess.com"]

[Event "Titled Tuesday Blitz July 05 Late 2022"]
[White "Vovk, Orest"]
[Black "Navarrete Mendez, Gonzalo Alberto"]
[WhiteFideId "14113490"]
[BlackFideId "5106850"]
[WhiteElo "2203"]
[BlackElo "2261"]
[Result "0-1"]
[Round "10"]
[TimeControl "180+1"]
[Date "2022.07.05"]
[WhiteClock "0:00:02"]
[BlackClock "0:01:28"]

1. h4 {[%clk 0:02:59]}  e5 {[%clk 0:02:58]} 2. h5 {[%clk 0:02:59]}  h6 {[%clk 0:02:58]} 3. d4 {[%clk 0:02:57]}  exd4 {[%clk 0:02:58]} 4. Qxd4 {[%clk 0:02:56]}  Nc6 {[%clk 0:02:58]} 5. Qa4 {[%clk 0:02:57]}  d5 {[%clk 0:02:58]} 6. g3 {[%clk 0:02:50]}  Nf6 {[%clk 0:02:54]} 7. Bh3 {[%clk 0:02:47]}  Bc5 {[%clk 0:02:46]} 8. Bxc8 {[%clk 0:02:46]}  Qxc8 {[%clk 0:02:47]} 9. Nf3 {[%clk 0:02:37]}  Qf5 {[%clk 0:02:41]} 10. Bf4 {[%clk 0:02:01]}  O-O-O {[%clk 0:02:39]} 11. Nbd2 {[%clk 0:01:55]}  Ne4 {[%clk 0:02:39]} 12. e3 {[%clk 0:01:46]}  g5 {[%clk 0:02:34]} 13. hxg6 {[%clk 0:01:43]}  fxg6 {[%clk 0:02:35]} 14. Rg1 {[%clk 0:00:56]}  g5 {[%clk 0:02:31]} 15. g4 {[%clk 0:00:56]}  Qf6 {[%clk 0:02:26]} 16. Bg3 {[%clk 0:00:48]}  Qxb2 {[%clk 0:02:24]} 17. Rb1 {[%clk 0:00:45]}  Qf6 {[%clk 0:02:24]} 18. Nxe4 {[%clk 0:00:36]}  dxe4 {[%clk 0:02:21]} 19. Qxe4 {[%clk 0:00:37]}  Qc3+ {[%clk 0:02:16]} 20. Kf1 {[%clk 0:00:35]}  Bb6 {[%clk 0:02:08]} 21. Kg2 {[%clk 0:00:29]}  Rhf8 {[%clk 0:02:03]} 22. Rgd1 {[%clk 0:00:21]}  Rde8 {[%clk 0:02:02]} 23. Qd5 {[%clk 0:00:16]}  Qg7 {[%clk 0:01:59]} 24. c4 {[%clk 0:00:12]}  Qe7 {[%clk 0:01:51]} 25. Rdc1 {[%clk 0:00:09]}  Rd8 {[%clk 0:01:49]} 26. Qb5 {[%clk 0:00:08]}  a6 {[%clk 0:01:39]} 27. Qb3 {[%clk 0:00:06]}  Qe4 {[%clk 0:01:38]} 28. c5 {[%clk 0:00:06]}  Qxf3+ {[%clk 0:01:38]} 29. Kh3 {[%clk 0:00:06]}  h5 {[%clk 0:01:29]} 30. gxh5 {[%clk 0:00:04]}  Qxh5+ {[%clk 0:01:28]} 31. Kg2 {[%clk 0:00:04]}  Qf3+ {[%clk 0:01:28]} 32. Kf1 {[%clk 0:00:03]}  Rh8 {[%clk 0:01:28]} 33. Qe6+ {[%clk 0:00:02]}  Kb8 {[%clk 0:01:28]} 0-1


[Site "https://www.chess.com"]